[Event "Titled Tuesday Blitz July 18 Early 2023"]
[White "Rakitic2010"]
[Black "Daniel_Salinas"]
[WhiteElo "2475"]
[BlackElo "2240"]
[Result "0-1"]
[Round "2"]
[TimeControl "180+2"]
[Date "2023.07.18"]
[WhiteClock "0:00:32"]
[BlackClock "0:00:36"]
[Board "178"]

1. e4 {[%clk 0:03:00]}  c5 {[%clk 0:02:56]} 2. Nf3 {[%clk 0:03:00]}  Nc6 {[%clk 0:02:55]} 3. d4 {[%clk 0:03:00]}  cxd4 {[%clk 0:02:55]} 4. Nxd4 {[%clk 0:03:01]}  Nf6 {[%clk 0:02:55]} 5. Nc3 {[%clk 0:03:01]}  d6 {[%clk 0:02:51]} 6. f3 {[%clk 0:02:59]}  e5 {[%clk 0:02:44]} 7. Nb3 {[%clk 0:02:59]}  Be6 {[%clk 0:02:44]} 8. Be3 {[%clk 0:02:59]}  d5 {[%clk 0:02:38]} 9. exd5 {[%clk 0:02:56]}  Nxd5 {[%clk 0:02:39]} 10. Nxd5 {[%clk 0:02:57]}  Qxd5 {[%clk 0:02:40]} 11. Qxd5 {[%clk 0:02:57]}  Bxd5 {[%clk 0:02:40]} 12. O-O-O {[%clk 0:02:57]}  Rd8 {[%clk 0:02:38]} 13. Nc5 {[%clk 0:02:35]}  Bxc5 {[%clk 0:02:26]} 14. Bxc5 {[%clk 0:02:35]}  f6 {[%clk 0:02:21]} 15. Bb5 {[%clk 0:02:28]}  Kf7 {[%clk 0:02:17]} 16. Rd2 {[%clk 0:02:12]}  Rd7 {[%clk 0:01:50]} 17. Rhd1 {[%clk 0:02:12]}  Rhd8 {[%clk 0:01:50]} 18. Bxc6 {[%clk 0:02:07]}  Bxc6 {[%clk 0:01:37]} 19. Bb4 {[%clk 0:02:08]}  g5 {[%clk 0:01:27]} 20. Bc5 {[%clk 0:02:09]}  h5 {[%clk 0:01:25]} 21. Bxa7 {[%clk 0:02:03]}  Rxd2 {[%clk 0:01:18]} 22. Rxd2 {[%clk 0:02:04]}  Ra8 {[%clk 0:01:17]} 23. Bc5 {[%clk 0:02:02]}  Rxa2 {[%clk 0:01:16]} 24. Rd8 {[%clk 0:02:01]}  Ra1+ {[%clk 0:01:10]} 25. Kd2 {[%clk 0:02:01]}  Rh1 {[%clk 0:01:10]} 26. Rf8+ {[%clk 0:01:52]}  Ke6 {[%clk 0:01:04]} 27. Bb6 {[%clk 0:01:15]}  Rxh2 {[%clk 0:01:00]} 28. Bd8 {[%clk 0:01:15]}  Rxg2+ {[%clk 0:00:59]} 29. Kd3 {[%clk 0:01:14]}  f5 {[%clk 0:00:58]} 30. Rf6+ {[%clk 0:01:00]}  Kd7 {[%clk 0:00:58]} 31. Bb6 {[%clk 0:01:00]}  h4 {[%clk 0:00:46]} 32. Rf7+ {[%clk 0:00:53]}  Ke6 {[%clk 0:00:46]} 33. Rh7 {[%clk 0:00:52]}  Bxf3 {[%clk 0:00:46]} 34. Bd8 {[%clk 0:00:51]}  Be4+ {[%clk 0:00:43]} 35. Kc4 {[%clk 0:00:49]}  Rxc2+ {[%clk 0:00:42]} 36. Kb5 {[%clk 0:00:49]}  Rxb2+ {[%clk 0:00:42]} 37. Kc5 {[%clk 0:00:49]}  Rg2 {[%clk 0:00:39]} 38. Re7+ {[%clk 0:00:36]}  Kf6 {[%clk 0:00:39]} 39. Kd6 {[%clk 0:00:33]}  Rd2+ {[%clk 0:00:38]} 40. Kc5 {[%clk 0:00:34]}  Rxd8 {[%clk 0:00:37]} 41. Rh7 {[%clk 0:00:34]}  g4 {[%clk 0:00:36]} 42. Rxh4 {[%clk 0:00:33]}  g3 {[%clk 0:00:36]} 43. Rh3 {[%clk 0:00:33]}  g2 {[%clk 0:00:36]} 44. Rg3 {[%clk 0:00:34]}  f4 {[%clk 0:00:37]} 45. Rg4 {[%clk 0:00:33]}  f3 {[%clk 0:00:37]} 46. Kb6 {[%clk 0:00:33]}  f2 {[%clk 0:00:37]} 47. Kc7 {[%clk 0:00:33]}  f1=Q {[%clk 0:00:36]} 48. Rxe4 {[%clk 0:00:33]}  g1=Q {[%clk 0:00:36]} 49. Kxd8 {[%clk 0:00:33]}  Qd3+ {[%clk 0:00:36]} 50. Ke8 {[%clk 0:00:32]}  Qxe4 {[%clk 0:00:36]} 51. Kf8 {[%clk 0:00:32]}  Qg7+ {[%clk 0:00:35]} 52. Ke8 {[%clk 0:00:32]}  Qe7# {[%clk 0:00:36]} 0-1


[Site "https://www.chess.com"]

[Event "Titled Tuesday Blitz July 18 Early 2023"]
[White "Tomaszewski, Kacper"]
[Black "La Villa Rivas, Marlon Javier"]
[WhiteFideId "1127373"]
[BlackFideId "3519546"]
[WhiteElo "2462"]
[BlackElo "2230"]
[Result "1-0"]
[Round "2"]
[TimeControl "180+2"]
[Date "2023.07.18"]
[WhiteClock "0:00:11"]
[BlackClock "0:00:47"]
[Board "182"]

1. d4 {[%clk 0:03:00]}  Nf6 {[%clk 0:02:39]} 2. Nf3 {[%clk 0:02:59]}  c5 {[%clk 0:02:37]} 3. c3 {[%clk 0:02:58]}  cxd4 {[%clk 0:02:36]} 4. cxd4 {[%clk 0:02:58]}  d5 {[%clk 0:02:37]} 5. Nc3 {[%clk 0:02:57]}  Nc6 {[%clk 0:02:37]} 6. Bf4 {[%clk 0:02:55]}  a6 {[%clk 0:02:36]} 7. e3 {[%clk 0:02:55]}  Bf5 {[%clk 0:02:29]} 8. Qb3 {[%clk 0:02:55]}  b5 {[%clk 0:02:22]} 9. Ne5 {[%clk 0:02:39]}  Na5 {[%clk 0:02:17]} 10. Qd1 {[%clk 0:02:14]}  e6 {[%clk 0:02:12]} 11. Be2 {[%clk 0:02:08]}  Bd6 {[%clk 0:02:06]} 12. O-O {[%clk 0:02:05]}  O-O {[%clk 0:02:05]} 13. g4 {[%clk 0:01:54]}  Bg6 {[%clk 0:02:02]} 14. f3 {[%clk 0:01:49]}  Nc4 {[%clk 0:01:51]} 15. b3 {[%clk 0:01:35]}  Na5 {[%clk 0:01:41]} 16. Qd2 {[%clk 0:01:25]}  Rc8 {[%clk 0:01:38]} 17. Qb2 {[%clk 0:01:22]}  Qe7 {[%clk 0:01:28]} 18. a3 {[%clk 0:01:14]}  b4 {[%clk 0:01:25]} 19. axb4 {[%clk 0:00:52]}  Bxb4 {[%clk 0:01:26]} 20. Rfc1 {[%clk 0:00:48]}  Rb8 {[%clk 0:01:08]} 21. Rxa5 {[%clk 0:00:30]}  Bxa5 {[%clk 0:01:09]} 22. Nc6 {[%clk 0:00:29]}  Qb7 {[%clk 0:01:06]} 23. Nxa5 {[%clk 0:00:25]}  Qb4 {[%clk 0:00:56]} 24. Bxb8 {[%clk 0:00:16]}  Qxa5 {[%clk 0:00:56]} 25. Bf4 {[%clk 0:00:12]}  h5 {[%clk 0:00:55]} 26. g5 {[%clk 0:00:12]}  Nh7 {[%clk 0:00:55]} 27. Na4 {[%clk 0:00:12]}  f6 {[%clk 0:00:55]} 28. Qc3 {[%clk 0:00:12]}  Qd8 {[%clk 0:00:54]} 29. gxf6 {[%clk 0:00:11]}  Qxf6 {[%clk 0:00:53]} 30. Nc5 {[%clk 0:00:12]}  Ng5 {[%clk 0:00:51]} 31. Nd7 {[%clk 0:00:12]}  Nh3+ {[%clk 0:00:51]} 32. Kf1 {[%clk 0:00:11]}  Qh4 {[%clk 0:00:50]} 33. Bg3 {[%clk 0:00:10]}  Qg5 {[%clk 0:00:48]} 34. Nxf8 {[%clk 0:00:10]}  Kxf8 {[%clk 0:00:48]} 35. Qc8+ {[%clk 0:00:10]}  Be8 {[%clk 0:00:49]} 36. Qxe6 {[%clk 0:00:07]}  h4 {[%clk 0:00:49]} 37. Qxh3 {[%clk 0:00:07]}  hxg3 {[%clk 0:00:49]} 38. Qxg3 {[%clk 0:00:07]}  Qxe3 {[%clk 0:00:49]} 39. Rc7 {[%clk 0:00:06]}  Qxd4 {[%clk 0:00:49]} 40. Qd6+ {[%clk 0:00:06]}  Kg8 {[%clk 0:00:49]} 41. Qe6+ {[%clk 0:00:06]}  Kh7 {[%clk 0:00:48]} 42. Qf5+ {[%clk 0:00:06]}  Bg6 {[%clk 0:00:47]} 43. Qh3+ {[%clk 0:00:06]}  Kg8 {[%clk 0:00:45]} 44. Rc8+ {[%clk 0:00:06]}  Kf7 {[%clk 0:00:46]} 45. Qd7+ {[%clk 0:00:06]}  Kf6 {[%clk 0:00:47]} 46. Rc6+ {[%clk 0:00:06]}  Kg5 {[%clk 0:00:46]} 47. Qg4+ {[%clk 0:00:07]}  Qxg4 {[%clk 0:00:46]} 48. fxg4 {[%clk 0:00:07]}  d4 {[%clk 0:00:46]} 49. Rd6 {[%clk 0:00:08]}  d3 {[%clk 0:00:47]} 50. Rxd3 {[%clk 0:00:08]}  Bxd3 {[%clk 0:00:47]} 51. Bxd3 {[%clk 0:00:09]}  Kxg4 {[%clk 0:00:48]} 52. Bxa6 {[%clk 0:00:09]}  Kh3 {[%clk 0:00:48]} 53. Kg1 {[%clk 0:00:09]}  g5 {[%clk 0:00:49]} 54. b4 {[%clk 0:00:10]}  g4 {[%clk 0:00:47]} 55. b5 {[%clk 0:00:11]} 1-0


[Site "https://www.chess.com"]

[Event "Titled Tuesday Blitz July 18 Early 2023"]
[White "disciplinedbrat"]
[Black "Begunov, Konstantin"]
[BlackFideId "4118510"]
[WhiteElo "2222"]
[BlackElo "2459"]
[Result "0-1"]
[Round "2"]
[TimeControl "180+2"]
[Date "2023.07.18"]
[WhiteClock "0:00:08"]
[BlackClock "0:00:13"]
[Board "185"]

1. g3 {[%clk 0:02:59]}  d5 {[%clk 0:02:59]} 2. Bg2 {[%clk 0:02:58]}  c6 {[%clk 0:03:00]} 3. d3 {[%clk 0:02:57]}  Bg4 {[%clk 0:03:00]} 4. Nd2 {[%clk 0:02:56]}  Nd7 {[%clk 0:03:00]} 5. a3 {[%clk 0:02:56]}  e5 {[%clk 0:02:59]} 6. b4 {[%clk 0:02:57]}  Bd6 {[%clk 0:02:59]} 7. Bb2 {[%clk 0:02:57]}  Qe7 {[%clk 0:02:59]} 8. h3 {[%clk 0:02:56]}  Bh5 {[%clk 0:02:59]} 9. Rc1 {[%clk 0:02:56]}  Ngf6 {[%clk 0:02:47]} 10. c4 {[%clk 0:02:55]}  O-O {[%clk 0:02:44]} 11. Ngf3 {[%clk 0:02:52]}  e4 {[%clk 0:02:35]} 12. dxe4 {[%clk 0:02:45]}  dxe4 {[%clk 0:02:35]} 13. Nd4 {[%clk 0:02:44]}  e3 {[%clk 0:02:30]} 14. Nf5 {[%clk 0:02:42]}  exf2+ {[%clk 0:02:24]} 15. Kxf2 {[%clk 0:02:24]}  Qe6 {[%clk 0:02:16]} 16. g4 {[%clk 0:02:22]}  Bg6 {[%clk 0:01:55]} 17. Nxd6 {[%clk 0:02:19]}  Qxd6 {[%clk 0:01:56]} 18. Nf3 {[%clk 0:02:12]}  Ne4+ {[%clk 0:01:42]} 19. Kg1 {[%clk 0:02:05]}  Qe7 {[%clk 0:01:08]} 20. Qd4 {[%clk 0:01:51]}  Ndf6 {[%clk 0:01:01]} 21. Ne5 {[%clk 0:01:36]}  Rad8 {[%clk 0:00:56]} 22. Qe3 {[%clk 0:01:32]}  Rd2 {[%clk 0:00:44]} 23. Nxg6 {[%clk 0:01:25]}  hxg6 {[%clk 0:00:35]} 24. Bxf6 {[%clk 0:01:24]}  Qxf6 {[%clk 0:00:20]} 25. Bxe4 {[%clk 0:01:21]}  Qb2 {[%clk 0:00:19]} 26. Kf2 {[%clk 0:01:16]}  Re8 {[%clk 0:00:16]} 27. Rb1 {[%clk 0:01:14]}  Qf6+ {[%clk 0:00:16]} 28. Kg2 {[%clk 0:01:08]}  Rd4 {[%clk 0:00:16]} 29. Rhf1 {[%clk 0:00:59]}  Qe5 {[%clk 0:00:16]} 30. Qf3 {[%clk 0:00:19]}  Qxe4 {[%clk 0:00:16]} 31. e3 {[%clk 0:00:19]}  Rd2+ {[%clk 0:00:15]} 32. Kg3 {[%clk 0:00:18]}  Qe5+ {[%clk 0:00:16]} 33. Qf4 {[%clk 0:00:17]}  Qxe3+ {[%clk 0:00:16]} 34. Rf3 {[%clk 0:00:15]}  Qxf4+ {[%clk 0:00:15]} 35. Kxf4 {[%clk 0:00:15]}  f6 {[%clk 0:00:13]} 36. Re3 {[%clk 0:00:15]}  g5+ {[%clk 0:00:13]} 37. Kf3 {[%clk 0:00:15]}  Rxe3+ {[%clk 0:00:13]} 38. Kxe3 {[%clk 0:00:16]}  Rh2 {[%clk 0:00:14]} 39. Ke4 {[%clk 0:00:15]}  Rxh3 {[%clk 0:00:15]} 40. Kf5 {[%clk 0:00:16]}  Rxa3 {[%clk 0:00:14]} 41. Kg6 {[%clk 0:00:16]}  Re3 {[%clk 0:00:13]} 42. Rd1 {[%clk 0:00:16]}  Kf8 {[%clk 0:00:13]} 43. Rd7 {[%clk 0:00:16]}  Re7 {[%clk 0:00:12]} 44. Rd8+ {[%clk 0:00:16]}  Re8 {[%clk 0:00:13]} 45. Rd7 {[%clk 0:00:16]}  Re4 {[%clk 0:00:13]} 46. Rf7+ {[%clk 0:00:14]}  Ke8 {[%clk 0:00:13]} 47. Rxg7 {[%clk 0:00:13]}  Rxg4 {[%clk 0:00:13]} 48. Rxb7 {[%clk 0:00:13]}  Rxc4 {[%clk 0:00:13]} 49. Kxf6 {[%clk 0:00:14]}  g4 {[%clk 0:00:13]} 50. Ke6 {[%clk 0:00:14]}  Kf8 {[%clk 0:00:14]} 51. Kf6 {[%clk 0:00:13]}  Kg8 {[%clk 0:00:13]} 52. Kg6 {[%clk 0:00:13]}  Kf8 {[%clk 0:00:13]} 53. Kf6 {[%clk 0:00:14]}  Ke8 {[%clk 0:00:14]} 54. Ke6 {[%clk 0:00:14]}  Kd8 {[%clk 0:00:14]} 55. Kd6 {[%clk 0:00:15]}  Kc8 {[%clk 0:00:14]} 56. Rxa7 {[%clk 0:00:13]}  Kb8 {[%clk 0:00:14]} 57. Rc7 {[%clk 0:00:09]}  Rd4+ {[%clk 0:00:12]} 58. Kxc6 {[%clk 0:00:10]}  Rc4+ {[%clk 0:00:12]} 59. Kb6 {[%clk 0:00:08]}  Rxc7 {[%clk 0:00:13]} 0-1


[Site "https://www.chess.com"]

[Event "Titled Tuesday Blitz July 18 Early 2023"]
[White "Martin Barcelo, Carles"]
[Black "Pershina, Elena"]
[WhiteFideId "24561444"]
[BlackFideId "24147516"]
[WhiteElo "2458"]
[BlackElo "2206"]
[Result "1-0"]
[Round "2"]
[TimeControl "180+2"]
[Date "2023.07.18"]
[WhiteClock "0:00:06"]
[BlackClock "0:00:12"]
[Board "186"]

1. e4 {[%clk 0:02:59]}  c5 {[%clk 0:03:00]} 2. Nc3 {[%clk 0:02:59]}  Nc6 {[%clk 0:03:00]} 3. Bb5 {[%clk 0:02:59]}  Nd4 {[%clk 0:02:58]} 4. Nf3 {[%clk 0:02:59]}  g6 {[%clk 0:02:56]} 5. O-O {[%clk 0:02:46]}  Bg7 {[%clk 0:02:56]} 6. Nxd4 {[%clk 0:02:44]}  cxd4 {[%clk 0:02:55]} 7. Ne2 {[%clk 0:02:44]}  a6 {[%clk 0:02:55]} 8. Bd3 {[%clk 0:02:44]}  d6 {[%clk 0:02:51]} 9. c3 {[%clk 0:02:44]}  dxc3 {[%clk 0:02:50]} 10. dxc3 {[%clk 0:02:45]}  Nf6 {[%clk 0:02:50]} 11. Bg5 {[%clk 0:02:38]}  O-O {[%clk 0:02:49]} 12. Qd2 {[%clk 0:02:38]}  b5 {[%clk 0:02:42]} 13. a4 {[%clk 0:02:37]}  Rb8 {[%clk 0:02:40]} 14. axb5 {[%clk 0:02:36]}  axb5 {[%clk 0:02:41]} 15. Nd4 {[%clk 0:02:36]}  Bd7 {[%clk 0:02:33]} 16. Qe2 {[%clk 0:02:32]}  Qb6 {[%clk 0:02:31]} 17. b4 {[%clk 0:02:28]}  Rfc8 {[%clk 0:02:30]} 18. Rfc1 {[%clk 0:02:27]}  h6 {[%clk 0:02:25]} 19. Be3 {[%clk 0:02:27]}  Qb7 {[%clk 0:02:22]} 20. f3 {[%clk 0:02:24]}  Kh7 {[%clk 0:02:17]} 21. Kh1 {[%clk 0:02:23]}  Nh5 {[%clk 0:02:11]} 22. Ra3 {[%clk 0:02:01]}  Be5 {[%clk 0:02:05]} 23. Rca1 {[%clk 0:01:58]}  Ra8 {[%clk 0:01:50]} 24. Bxb5 {[%clk 0:01:36]}  Rxa3 {[%clk 0:00:57]} 25. Rxa3 {[%clk 0:01:37]}  Bxb5 {[%clk 0:00:52]} 26. Qxb5 {[%clk 0:01:33]}  Qc7 {[%clk 0:00:45]} 27. Qd5 {[%clk 0:01:05]}  e6 {[%clk 0:00:42]} 28. Qa2 {[%clk 0:01:05]}  d5 {[%clk 0:00:38]} 29. exd5 {[%clk 0:00:43]}  Bxh2 {[%clk 0:00:37]} 30. Nb5 {[%clk 0:00:40]}  Qg3 {[%clk 0:00:23]} 31. Qf2 {[%clk 0:00:36]}  Qe5 {[%clk 0:00:18]} 32. Bd4 {[%clk 0:00:30]}  Qb8 {[%clk 0:00:18]} 33. d6 {[%clk 0:00:28]}  Bxd6 {[%clk 0:00:16]} 34. Nxd6 {[%clk 0:00:13]}  Qxd6 {[%clk 0:00:17]} 35. Qe3 {[%clk 0:00:11]}  Ng3+ {[%clk 0:00:16]} 36. Kg1 {[%clk 0:00:11]}  Qc7 {[%clk 0:00:15]} 37. Be5 {[%clk 0:00:09]}  Qc4 {[%clk 0:00:14]} 38. Bxg3 {[%clk 0:00:09]}  Qd5 {[%clk 0:00:14]} 39. Qd4 {[%clk 0:00:07]}  Qxd4+ {[%clk 0:00:13]} 40. cxd4 {[%clk 0:00:08]}  Rc1+ {[%clk 0:00:13]} 41. Kf2 {[%clk 0:00:09]}  Rd1 {[%clk 0:00:13]} 42. Be5 {[%clk 0:00:08]}  Rb1 {[%clk 0:00:13]} 43. Ra8 {[%clk 0:00:08]}  g5 {[%clk 0:00:12]} 44. Rf8 {[%clk 0:00:06]}  Kg6 {[%clk 0:00:11]} 45. Rg8+ {[%clk 0:00:06]}  Kf5 {[%clk 0:00:12]} 46. g4# {[%clk 0:00:06]} 1-0


[Site "https://www.chess.com"]

[Event "Titled Tuesday Blitz July 18 Early 2023"]
[White "Vila Dupla, Aurelio"]
[Black "Aakanksha Hagawane"]
[WhiteFideId "2203383"]
[BlackFideId "25014510"]
[WhiteElo "2201"]
[BlackElo "2457"]
[Result "0-1"]
[Round "2"]
[TimeControl "180+2"]
[Date "2023.07.18"]
[WhiteClock "0:00:09"]
[BlackClock "0:00:14"]
[Board "188"]

1. Nf3 {[%clk 0:03:00]}  Nf6 {[%clk 0:02:58]} 2. d4 {[%clk 0:03:00]}  e6 {[%clk 0:02:56]} 3. g3 {[%clk 0:02:59]}  b6 {[%clk 0:02:55]} 4. Bg2 {[%clk 0:02:59]}  Bb7 {[%clk 0:02:55]} 5. O-O {[%clk 0:02:59]}  c5 {[%clk 0:02:50]} 6. c4 {[%clk 0:02:52]}  d5 {[%clk 0:02:48]} 7. Nc3 {[%clk 0:02:36]}  Be7 {[%clk 0:02:40]} 8. cxd5 {[%clk 0:02:17]}  exd5 {[%clk 0:02:39]} 9. b3 {[%clk 0:02:17]}  O-O {[%clk 0:02:28]} 10. Bb2 {[%clk 0:02:17]}  Nc6 {[%clk 0:02:20]} 11. Re1 {[%clk 0:01:57]}  Re8 {[%clk 0:01:50]} 12. e3 {[%clk 0:01:57]}  Qd7 {[%clk 0:01:19]} 13. Ne5 {[%clk 0:01:56]}  Qe6 {[%clk 0:01:18]} 14. Rc1 {[%clk 0:01:27]}  Rad8 {[%clk 0:00:56]} 15. Nb5 {[%clk 0:01:25]}  Qf5 {[%clk 0:00:47]} 16. Nxc6 {[%clk 0:01:03]}  Bxc6 {[%clk 0:00:47]} 17. Nxa7 {[%clk 0:01:02]}  Bb7 {[%clk 0:00:38]} 18. Nb5 {[%clk 0:00:59]}  Ng4 {[%clk 0:00:29]} 19. Qf3 {[%clk 0:00:55]}  Qg6 {[%clk 0:00:27]} 20. h3 {[%clk 0:00:43]}  Nf6 {[%clk 0:00:26]} 21. Qe2 {[%clk 0:00:34]}  Ne4 {[%clk 0:00:18]} 22. Red1 {[%clk 0:00:27]}  h5 {[%clk 0:00:17]} 23. h4 {[%clk 0:00:22]}  Bf6 {[%clk 0:00:17]} 24. dxc5 {[%clk 0:00:18]}  bxc5 {[%clk 0:00:17]} 25. Bxf6 {[%clk 0:00:18]}  Qxf6 {[%clk 0:00:16]} 26. Rf1 {[%clk 0:00:14]}  Ba6 {[%clk 0:00:15]} 27. a4 {[%clk 0:00:13]}  Qb6 {[%clk 0:00:15]} 28. Qc2 {[%clk 0:00:12]}  f5 {[%clk 0:00:14]} 29. Qc3 {[%clk 0:00:09]}  Nxc3 {[%clk 0:00:14]} 0-1


[Site "https://www.chess.com"]

[Event "Titled Tuesday Blitz July 18 Early 2023"]
[White "Gatterer, Florian"]
[Black "Larina, Maria"]
[WhiteFideId "811688"]
[BlackFideId "24113182"]
[WhiteElo "2448"]
[BlackElo "2198"]
[Result "1/2-1/2"]
[Round "2"]
[TimeControl "180+2"]
[Date "2023.07.18"]
[WhiteClock "0:02:42"]
[BlackClock "0:02:17"]
[Board "190"]

1. Nf3 {[%clk 0:03:00]}  f5 {[%clk 0:02:59]} 2. b3 {[%clk 0:02:57]}  d6 {[%clk 0:02:58]} 3. d4 {[%clk 0:02:56]}  Nf6 {[%clk 0:02:58]} 4. Bb2 {[%clk 0:02:56]}  g6 {[%clk 0:02:57]} 5. g3 {[%clk 0:02:57]}  Bg7 {[%clk 0:02:58]} 6. Bg2 {[%clk 0:02:58]}  O-O {[%clk 0:02:58]} 7. O-O {[%clk 0:02:58]}  c6 {[%clk 0:02:56]} 8. Nbd2 {[%clk 0:02:58]}  a5 {[%clk 0:02:56]} 9. a4 {[%clk 0:02:56]}  Na6 {[%clk 0:02:55]} 10. Re1 {[%clk 0:02:56]}  Ne4 {[%clk 0:02:50]} 11. Nxe4 {[%clk 0:02:54]}  fxe4 {[%clk 0:02:51]} 12. Nd2 {[%clk 0:02:54]}  d5 {[%clk 0:02:51]} 13. e3 {[%clk 0:02:47]}  Nb4 {[%clk 0:02:17]} 14. Ba3 {[%clk 0:02:42]} 1/2-1/2


[Site "https://www.chess.com"]

[Event "Titled Tuesday Blitz July 18 Early 2023"]
[White "Sankalan Shah"]
[Black "Tanmay Jain"]
[WhiteFideId "25600362"]
[BlackFideId "45015481"]
[WhiteElo "2190"]
[BlackElo "2447"]
[Result "0-1"]
[Round "2"]
[TimeControl "180+2"]
[Date "2023.07.18"]
[WhiteClock "0:00:00"]
[BlackClock "0:00:04"]
[Board "191"]

1. d4 {[%clk 0:02:59]}  Nf6 {[%clk 0:02:59]} 2. c4 {[%clk 0:02:57]}  e6 {[%clk 0:03:00]} 3. Nf3 {[%clk 0:02:55]}  d5 {[%clk 0:02:59]} 4. Nc3 {[%clk 0:02:50]}  Be7 {[%clk 0:02:59]} 5. Bf4 {[%clk 0:02:47]}  O-O {[%clk 0:02:59]} 6. e3 {[%clk 0:02:48]}  b6 {[%clk 0:02:59]} 7. cxd5 {[%clk 0:02:43]}  exd5 {[%clk 0:02:59]} 8. Rc1 {[%clk 0:02:42]}  c5 {[%clk 0:02:52]} 9. dxc5 {[%clk 0:02:39]}  bxc5 {[%clk 0:02:44]} 10. Be2 {[%clk 0:02:40]}  Nc6 {[%clk 0:02:41]} 11. O-O {[%clk 0:02:40]}  Bb7 {[%clk 0:02:39]} 12. b3 {[%clk 0:02:09]}  d4 {[%clk 0:02:02]} 13. exd4 {[%clk 0:02:07]}  Nxd4 {[%clk 0:01:59]} 14. Nxd4 {[%clk 0:01:40]}  cxd4 {[%clk 0:02:00]} 15. Nb5 {[%clk 0:01:40]}  Qd5 {[%clk 0:01:46]} 16. f3 {[%clk 0:01:16]}  Bc5 {[%clk 0:01:34]} 17. Bc4 {[%clk 0:00:53]}  Qd7 {[%clk 0:01:29]} 18. Qd3 {[%clk 0:00:41]}  Bb6 {[%clk 0:01:19]} 19. Rfd1 {[%clk 0:00:36]}  Nd5 {[%clk 0:01:08]} 20. Bxd5 {[%clk 0:00:20]}  Bxd5 {[%clk 0:00:50]} 21. Nc7 {[%clk 0:00:20]}  Rac8 {[%clk 0:00:46]} 22. Nxd5 {[%clk 0:00:19]}  Qxd5 {[%clk 0:00:47]} 23. h3 {[%clk 0:00:16]}  h6 {[%clk 0:00:44]} 24. Kh2 {[%clk 0:00:16]}  Rfe8 {[%clk 0:00:40]} 25. Re1 {[%clk 0:00:15]}  Rcd8 {[%clk 0:00:24]} 26. Rcd1 {[%clk 0:00:13]}  Rxe1 {[%clk 0:00:19]} 27. Rxe1 {[%clk 0:00:13]}  Rc8 {[%clk 0:00:19]} 28. Rd1 {[%clk 0:00:10]}  Rd8 {[%clk 0:00:17]} 29. a4 {[%clk 0:00:09]}  Qa5 {[%clk 0:00:16]} 30. Bg3 {[%clk 0:00:08]}  Qb4 {[%clk 0:00:16]} 31. Be1 {[%clk 0:00:08]}  Qc5 {[%clk 0:00:15]} 32. Bf2 {[%clk 0:00:08]}  Qd5 {[%clk 0:00:15]} 33. b4 {[%clk 0:00:07]}  a6 {[%clk 0:00:15]} 34. a5 {[%clk 0:00:06]}  Bc7+ {[%clk 0:00:12]} 35. Kh1 {[%clk 0:00:06]}  Qe5 {[%clk 0:00:11]} 36. g3 {[%clk 0:00:04]}  Qd5 {[%clk 0:00:11]} 37. Kg2 {[%clk 0:00:05]}  Bd6 {[%clk 0:00:11]} 38. Qxa6 {[%clk 0:00:04]}  Be5 {[%clk 0:00:07]} 39. Qd3 {[%clk 0:00:02]}  Rb8 {[%clk 0:00:07]} 40. b5 {[%clk 0:00:02]}  Rxb5 {[%clk 0:00:06]} 41. a6 {[%clk 0:00:02]}  Ra5 {[%clk 0:00:05]} 42. Rb1 {[%clk 0:00:02]}  g6 {[%clk 0:00:05]} 43. Rc1 {[%clk 0:00:02]}  Qd6 {[%clk 0:00:03]} 44. Rc8+ {[%clk 0:00:02]}  Kg7 {[%clk 0:00:04]} 45. f4 {[%clk 0:00:03]}  Bf6 {[%clk 0:00:04]} 46. Kh1 {[%clk 0:00:03]}  Rxa6 {[%clk 0:00:04]} 47. Kh2 {[%clk 0:00:02]}  Ra1 {[%clk 0:00:04]} 48. Rc4 {[%clk 0:00:00]}  Qd5 {[%clk 0:00:04]} 0-1


[Site "https://www.chess.com"]

[Event "Titled Tuesday Blitz July 18 Early 2023"]
[White "Arnold, Ken"]
[Black "Lisjak, Zlatko"]
[WhiteFideId "2056836"]
[BlackFideId "14502186"]
[WhiteElo "2444"]
[BlackElo "2164"]
[Result "1-0"]
[Round "2"]
[TimeControl "180+2"]
[Date "2023.07.18"]
[WhiteClock "0:00:33"]
[BlackClock "0:00:00"]
[Board "194"]

1. e4 {[%clk 0:03:00]}  d6 {[%clk 0:03:00]} 2. Nf3 {[%clk 0:03:00]}  c6 {[%clk 0:02:57]} 3. d4 {[%clk 0:03:00]}  Nf6 {[%clk 0:02:57]} 4. Nc3 {[%clk 0:03:00]}  Bg4 {[%clk 0:02:54]} 5. Bc4 {[%clk 0:02:57]}  e6 {[%clk 0:02:54]} 6. O-O {[%clk 0:02:56]}  d5 {[%clk 0:02:44]} 7. exd5 {[%clk 0:02:55]}  cxd5 {[%clk 0:02:43]} 8. Bb5+ {[%clk 0:02:54]}  Nc6 {[%clk 0:02:43]} 9. h3 {[%clk 0:02:53]}  Bxf3 {[%clk 0:02:40]} 10. Qxf3 {[%clk 0:02:52]}  a6 {[%clk 0:02:40]} 11. Bxc6+ {[%clk 0:02:52]}  bxc6 {[%clk 0:02:40]} 12. Be3 {[%clk 0:02:50]}  Bd6 {[%clk 0:02:29]} 13. Na4 {[%clk 0:02:48]}  Ne4 {[%clk 0:02:26]} 14. b3 {[%clk 0:02:47]}  O-O {[%clk 0:02:24]} 15. c4 {[%clk 0:02:45]}  f5 {[%clk 0:02:17]} 16. Bf4 {[%clk 0:02:40]}  g5 {[%clk 0:02:13]} 17. Bxd6 {[%clk 0:02:40]}  Qxd6 {[%clk 0:02:13]} 18. cxd5 {[%clk 0:02:38]}  cxd5 {[%clk 0:02:00]} 19. Rfd1 {[%clk 0:02:33]}  Kh8 {[%clk 0:01:53]} 20. Rac1 {[%clk 0:02:30]}  g4 {[%clk 0:01:51]} 21. Qd3 {[%clk 0:02:18]}  gxh3 {[%clk 0:01:45]} 22. Qxh3 {[%clk 0:02:15]}  Rg8 {[%clk 0:01:37]} 23. Nc5 {[%clk 0:02:06]}  Rg7 {[%clk 0:01:06]} 24. Nxe4 {[%clk 0:01:53]}  dxe4 {[%clk 0:01:04]} 25. Rc5 {[%clk 0:01:39]}  Rag8 {[%clk 0:00:58]} 26. Re5 {[%clk 0:01:28]}  Rg4 {[%clk 0:00:40]} 27. g3 {[%clk 0:01:05]}  f4 {[%clk 0:00:19]} 28. Rxe4 {[%clk 0:01:04]}  Qd5 {[%clk 0:00:19]} 29. Rde1 {[%clk 0:01:01]}  Qg5 {[%clk 0:00:18]} 30. Kf1 {[%clk 0:00:49]}  fxg3 {[%clk 0:00:18]} 31. Rxg4 {[%clk 0:00:44]}  Qxg4 {[%clk 0:00:16]} 32. Qxg4 {[%clk 0:00:44]}  Rxg4 {[%clk 0:00:15]} 33. Rxe6 {[%clk 0:00:41]}  g2+ {[%clk 0:00:14]} 34. Kg1 {[%clk 0:00:41]}  Rxd4 {[%clk 0:00:14]} 35. Kxg2 {[%clk 0:00:40]}  Rd2 {[%clk 0:00:13]} 36. Rxa6 {[%clk 0:00:40]}  Kg7 {[%clk 0:00:12]} 37. b4 {[%clk 0:00:40]}  Rb2 {[%clk 0:00:08]} 38. a3 {[%clk 0:00:38]}  Rb3 {[%clk 0:00:06]} 39. Ra5 {[%clk 0:00:39]}  Kf6 {[%clk 0:00:05]} 40. b5 {[%clk 0:00:39]}  Ke6 {[%clk 0:00:05]} 41. a4 {[%clk 0:00:39]}  Rb4 {[%clk 0:00:03]} 42. Ra6+ {[%clk 0:00:39]}  Ke5 {[%clk 0:00:04]} 43. b6 {[%clk 0:00:39]}  Kf4 {[%clk 0:00:03]} 44. a5 {[%clk 0:00:39]}  h5 {[%clk 0:00:03]} 45. Ra7 {[%clk 0:00:38]}  h4 {[%clk 0:00:03]} 46. b7 {[%clk 0:00:37]}  Kg4 {[%clk 0:00:02]} 47. a6 {[%clk 0:00:36]}  h3+ {[%clk 0:00:01]} 48. Kh2 {[%clk 0:00:35]}  Rb2 {[%clk 0:00:00]} 49. Ra8 {[%clk 0:00:33]} 1-0


[Site "https://www.chess.com"]